fUST/lending_fUST_20250825
["ID","MTS","AMOUNT","RATE_DAILY","PERIOD"]
[381289469,1756126942141,-480.0,0.00043835,120]
[381289470,1756126942180,-1531.43,0.00043835,120]
[381289471,1756126942219,-4805.74,0.00043835,120]
[381289472,1756126942259,-1180.0,0.00043835,120]
[381289473,1756126942298,-3615.26,0.00043835,120]
[381289474,1756126942336,-480.0,0.00043835,120]
[381289475,1756126942374,-480.0,0.00043835,120]
[381289476,1756126942413,-1277.76,0.00043835,120]
[381289477,1756126942450,-480.0,0.00043835,120]
[381289478,1756126942486,-4044.88,0.00043835,120]
[381289479,1756126942522,-929.79,0.00043835,120]
[381289480,1756126942559,-25402.47,0.00043835,120]
[381289481,1756126942596,-955.0,0.00043835,120]
[381289482,1756126942631,-1204.96,0.00043835,120]
[381289483,1756126942667,-480.0,0.00043835,120]
[381289484,1756126942706,-623.49,0.00044109,120]
[381289485,1756126942743,-480.0,0.00044109,120]
[381289486,1756126942782,-480.0,0.00044109,120]
[381289487,1756126942824,-922.87,0.00044109,120]
[381289488,1756126942865,-3286.24,0.00044109,120]
[381289489,1756126942906,-1742.33,0.00044109,120]
[381289490,1756126942946,-699.69,0.00044109,120]
[381289491,1756126942988,-480.0,0.00044109,120]
[381289492,1756126943031,-3554.1,0.00044109,120]
[381289493,1756126943073,-1900.11,0.00044109,120]
[381289494,1756126943113,-480.0,0.00044109,120]
[381289495,1756126943153,-1531.43,0.00044109,120]
[381289496,1756126943193,-4805.74,0.00044109,120]
[381289497,1756126943233,-1180.0,0.00044109,120]
[381289498,1756126943272,-3615.26,0.00044109,120]
[381289499,1756126943309,-400.0,0.00044109,120]
[381289500,1756126943348,-480.0,0.00044109,120]
[381289501,1756126943387,-1277.76,0.00044109,120]
[381289502,1756126943426,-480.0,0.00044109,120]
[381289503,1756126943464,-4044.88,0.00044109,120]
[381289504,1756126943502,-929.79,0.00044109,120]
[381289505,1756126943540,-25402.47,0.00044109,120]
[381289506,1756126943576,-955.0,0.00044109,120]
[381289507,1756126943614,-1204.96,0.00044109,120]
[381289508,1756126943652,-480.0,0.00044109,120]
[381289509,1756126943695,-623.49,0.00044383,120]
[381289510,1756126943733,-480.0,0.00044383,120]
[381289511,1756126943776,-480.0,0.00044383,120]
[381289512,1756126943819,-922.87,0.00044383,120]
[381289513,1756126943862,-3286.24,0.00044383,120]
[381289514,1756126943904,-1742.33,0.00044383,120]
[381289515,1756126943947,-699.69,0.00044383,120]
[381289516,1756126943991,-480.0,0.00044383,120]
[381289517,1756126944034,-3554.1,0.00044383,120]
[381289518,1756126944280,-1900.11,0.00044383,120]
[381289519,1756126944323,-385.94981388,0.00044383,120]
[381289520,1756126944364,-1531.43,0.00044383,120]
[381289521,1756126944405,-4805.74,0.00044383,120]
[381289522,1756126944445,-1180.0,0.00044383,120]
[381289523,1756126944485,-3615.26,0.00044383,120]
[381289524,1756126944525,-480.0,0.00044383,120]
[381289525,1756126944567,-1277.76,0.00044383,120]
[381289526,1756126944608,-480.0,0.00044383,120]
[381289527,1756126944650,-929.79,0.00044383,120]
[381289528,1756126944691,-4044.88,0.00044383,120]
[381289529,1756126944732,-25402.47,0.00044383,120]
[381289530,1756126944775,-955.0,0.00044383,120]
[381289531,1756126944820,-1204.96,0.00044383,120]
[381289532,1756126944866,-623.49,0.00044657,120]
[381289533,1756126944911,-480.0,0.00044657,120]
[381289534,1756126944957,-480.0,0.00044657,120]
[381289535,1756126945001,-922.87,0.00044657,120]
[381289536,1756126945045,-3286.24,0.00044657,120]
[381289537,1756126945092,-1742.33,0.00044657,120]
[381289538,1756126945135,-699.69,0.00044657,120]
[381289539,1756126945178,-480.0,0.00044657,120]
[381289540,1756126945219,-3554.1,0.00044657,120]
[381289541,1756126945260,-1900.11,0.00044657,120]
[381289542,1756126945300,-1531.43,0.00044657,120]
[381289543,1756126945341,-4805.74,0.00044657,120]
[381289544,1756126945383,-1180.0,0.00044657,120]
[381289545,1756126945422,-3615.26,0.00044657,120]
[381289546,1756126945462,-480.0,0.00044657,120]
[381289547,1756126945501,-1277.76,0.00044657,120]
[381289548,1756126945540,-480.0,0.00044657,120]
[381289549,1756126945579,-929.79,0.00044657,120]
[381289550,1756126945618,-4044.88,0.00044657,120]
[381289551,1756126945660,-25402.47,0.00044657,120]
[381289552,1756126945700,-955.0,0.00044657,120]
[381289553,1756126945741,-1204.96,0.00044657,120]
[381289554,1756126945783,-997.45,0.00044931,120]
[381289555,1756126945824,-480.0,0.00044931,120]
[381289556,1756126945864,-2182.29,0.00044931,120]
[381289557,1756126945905,-487.94,0.00044931,120]
[381289558,1756126945945,-896.66,0.00044931,120]
[381289559,1756126945988,-847.75,0.00044931,120]
[381289560,1756126946031,-654.73,0.00044931,120]
[381289561,1756126946071,-480.0,0.00044931,120]
[381289562,1756126946112,-490.9,0.00044931,120]
[381289563,1756126946152,-5909.94,0.00044931,120]
[381289564,1756126946193,-1676.25,0.00044931,120]
[381289565,1756126946237,-480.0,0.00044931,120]
[381289566,1756126946282,-480.0,0.00044931,120]
[381289567,1756126946331,-480.0,0.00044931,120]
[381289568,1756126946374,-480.0,0.00044931,120]
[381289569,1756126946418,-1637.12,0.00044931,120]
[381289570,1756126946468,-1896.62,0.00044931,120]
[381289571,1756126946511,-1185.69,0.00044931,120]
[381289572,1756126946552,-1152.59,0.00044931,120]
[381289573,1756126946594,-784.62,0.00044931,120]
[381289574,1756126946634,-509.48,0.00044931,120]
[381289575,1756126946675,-527.03,0.00044931,120]
[381289576,1756126946717,-480.0,0.00044931,120]
[381289577,1756126946759,-1022.88,0.00044931,120]
[381289578,1756126946801,-862.48,0.00044931,120]
[381289579,1756126946842,-771.76,0.00044931,120]
[381289580,1756126946883,-604.83,0.00044931,120]
[381289581,1756126946924,-1446.12,0.00044931,120]
[381289582,1756126946967,-815.47,0.00044931,120]
[381289583,1756126947010,-766.09,0.00044931,120]
[381289584,1756126947052,-1720.85,0.00044931,120]
[381289585,1756126947098,-1405.89,0.00044931,120]
[381289586,1756126947143,-2204.55,0.00044931,120]
[381289587,1756126947189,-631.79,0.00044931,120]
[381289588,1756126947231,-480.0,0.00044931,120]
[381289589,1756126947273,-1286.07,0.00044931,120]
[381289590,1756126947314,-480.0,0.00044931,120]
[381289591,1756126947358,-3309.78,0.00044931,120]
[381289592,1756126947404,-480.0,0.00044931,120]
[381289593,1756126947448,-8939.69,0.00044931,120]
[381289594,1756126947495,-782.03,0.00044931,120]
[381289595,1756126947538,-1045.84,0.00044931,120]
[381289596,1756126947580,-4901.35,0.00044931,120]
[381289597,1756126947620,-480.0,0.00044931,120]
[381289598,1756126947664,-3746.72,0.00044931,120]
[381289599,1756126947704,-1364.71,0.00044931,120]
[381289600,1756126947746,-2336.61,0.00044931,120]
[381289601,1756126947792,-480.0,0.00044931,120]
[381289602,1756126947836,-2298.35,0.00044931,120]
[381289603,1756126947886,-692.84,0.00044931,120]
[381289604,1756126947947,-480.0,0.00044931,120]
[381289605,1756126947990,-480.0,0.00044931,120]
[381289606,1756126948033,-748.2,0.00044931,120]
[381289607,1756126948074,-365.24627827,0.00044931,120]
[381289608,1756126948115,-480.0,0.00044931,120]
[381289609,1756126948157,-1497.52,0.00044931,120]
[381289610,1756126948198,-627.58,0.00044931,120]
[381289611,1756126948237,-2186.25,0.00044931,120]
[381289612,1756126948276,-1589.2,0.00044931,120]
[381289613,1756126948315,-3124.04,0.00044931,120]
[381289614,1756126948354,-865.69,0.00044931,120]
[381289615,1756126948392,-480.0,0.00044931,120]
[381289616,1756126948431,-668.63,0.00044931,120]
[381289617,1756126948471,-1700.64,0.00044931,120]
[381289618,1756126948512,-1853.9,0.00044931,120]
[381289619,1756126948552,-1233.38,0.00044931,120]
[381289620,1756126948592,-480.0,0.00044931,120]
[381289621,1756126948801,-843.91,0.00044931,120]
[381289622,1756126948844,-820.84,0.00044931,120]
[381289623,1756126948884,-220.82456318,0.00044931,120]
[381289624,1756126948925,-509.16,0.00044931,120]
[381289625,1756126948966,-3188.54,0.00044931,120]
[381289626,1756126949010,-687.95,0.00044931,120]
[381289627,1756126949051,-1293.99,0.00044931,120]
[381289628,1756126949093,-1335.79,0.00044931,120]
[381289629,1756126949132,-480.0,0.00044931,120]
[381289630,1756126949174,-361.98581474,0.00044931,120]
[381289631,1756126949216,-1304.07,0.00044931,120]
[381289632,1756126949257,-480.0,0.00044931,120]
[381289633,1756126949296,-3079.65,0.00044931,120]
[381289634,1756126949337,-1864.32,0.00044931,120]
[381289635,1756126949376,-536.76,0.00044931,120]
[381289636,1756126949415,-683.57,0.00044931,120]
[381289637,1756126949454,-480.0,0.00044931,120]
[381289638,1756126949492,-1315.65,0.00044931,120]
[381289639,1756126949528,-2414.52,0.00044931,120]
[381289640,1756126949566,-1292.83,0.00044931,120]
[381289641,1756126949609,-480.0,0.00044931,120]
[381289642,1756126949648,-597.75,0.00044931,120]
[381289643,1756126949687,-903.95,0.00044931,120]
[381289644,1756126949725,-1960.81,0.00044931,120]
[381289645,1756126949764,-480.0,0.00044931,120]
[381289646,1756126949803,-755.2,0.00044931,120]
[381289647,1756126949843,-1000.0,0.00044931,120]
[381289648,1756126949884,-905.54,0.00044931,120]
[381289649,1756126949924,-19614.7,0.00044931,120]
[381289650,1756126949963,-920.94,0.00044931,120]
[381289651,1756126950004,-25474.36,0.00044931,120]
[381289652,1756126950044,-682.89,0.00044931,120]
[381289653,1756126950085,-517.61,0.00044931,120]
[381289654,1756126950124,-4080.09,0.00044931,120]
[381289655,1756126950166,-965.82,0.00044931,120]
[381289656,1756126950205,-480.0,0.00044931,120]
[381289657,1756126950244,-3213.62,0.00044931,120]
[381289658,1756126950283,-1010.84,0.00044931,120]
[381289659,1756126950320,-594.53,0.00044931,120]
[381289660,1756126950360,-1632.43,0.00044931,120]
[381289661,1756126950399,-537.64,0.00044931,120]
[381289662,1756126950436,-5997.75,0.00044931,120]
[381289663,1756126950473,-966.7,0.00044931,120]
[381289664,1756126950509,-527.05,0.00044931,120]
[381289665,1756126950545,-640.67,0.00044931,120]
[381289666,1756126950582,-3476.32,0.00044931,120]
[381289667,1756126950618,-480.0,0.00044931,120]
[381289668,1756126950654,-659.23,0.00044931,120]
[381289669,1756126950692,-604.56,0.00044931,120]
[381289670,1756126950728,-480.0,0.00044931,120]
[381289671,1756126950764,-673.78,0.00044931,120]
[381289672,1756126950800,-480.0,0.00044931,120]
[381289673,1756126950837,-1408.09,0.00044931,120]
[381289674,1756126950873,-594.97,0.00044931,120]
[381289675,1756126950909,-725.22,0.00044931,120]
[381289676,1756126950947,-758.37,0.00044931,120]
[381289677,1756126950986,-1332.47,0.00044931,120]
[381289678,1756126951022,-480.0,0.00044931,120]
[381289679,1756126951062,-480.0,0.00044931,120]
[381289680,1756126951098,-492.09,0.00044931,120]
[381289681,1756126951135,-5609.95,0.00044931,120]
[381289682,1756126951174,-491.39,0.00044931,120]
[381289683,1756126951212,-750.67,0.00044931,120]
[381289684,1756126951253,-626.84,0.00044931,120]
[381289685,1756126951295,-480.0,0.00044931,120]
[381289686,1756126951334,-1629.79,0.00044931,120]
[381289687,1756126951375,-827.22,0.00044931,120]
[381289688,1756126951416,-9745.05,0.00044931,120]
[381289689,1756126951456,-1678.54,0.00044931,120]
[381289690,1756126951495,-733.03,0.00044931,120]
[381289691,1756126951534,-480.0,0.00044931,120]
[381289692,1756126951571,-480.0,0.00044931,120]
[381289693,1756126951612,-1149.92,0.00044931,120]
[381289694,1756126951651,-598.38,0.00044931,120]
[381289695,1756126951692,-1274.15,0.00044931,120]
[381289696,1756126951732,-480.0,0.00044931,120]
[381289697,1756126951771,-770.82,0.00044931,120]
[381289698,1756126951817,-481.54,0.00044931,120]
[381289699,1756126951861,-1375.84,0.00044931,120]
[381289700,1756126951903,-480.0,0.00044931,120]
[381289701,1756126951946,-1309.42,0.00044931,120]
[381289702,1756126951991,-1975.28,0.00044931,120]
[381289703,1756126952033,-1147.44,0.00044931,120]
[381289704,1756126952075,-480.0,0.00044931,120]
[381289705,1756126952115,-955.26,0.00044931,120]
[381289706,1756126952155,-953.58,0.00044931,120]
[381289707,1756126952195,-480.0,0.00044931,120]
[381289708,1756126952233,-1137.32,0.00044931,120]
[381289709,1756126952271,-1015.19,0.00044931,120]
[381289710,1756126952310,-480.0,0.00044931,120]
[381289711,1756126952349,-480.0,0.00044931,120]
[381289712,1756126952392,-3650.06,0.00044931,120]
[381289713,1756126952432,-480.0,0.00044931,120]
[381289714,1756126952471,-2088.99,0.00044931,120]
[381289715,1756126952509,-480.0,0.00044931,120]
[381289716,1756126952547,-555.81,0.00044931,120]
[381289717,1756126952584,-1601.92,0.00044931,120]
[381289718,1756126952622,-480.0,0.00044931,120]
[381289719,1756126952661,-480.0,0.00044931,120]
[381289720,1756126952702,-480.0,0.00044931,120]
[381289721,1756126952741,-480.0,0.00044931,120]
[381289722,1756126952781,-885.47,0.00044931,120]
[381289723,1756126952823,-480.0,0.00044931,120]
[381289724,1756126952865,-498.97,0.00044931,120]
[381289725,1756126953071,-480.0,0.00044931,120]
[381289726,1756126953116,-1333.13,0.00044931,120]
[381289727,1756126953161,-589.58,0.00044931,120]
[381289728,1756126953203,-539.63,0.00044931,120]
[381289729,1756126953244,-1232.99,0.00044931,120]
[381289730,1756126953286,-946.1,0.00044931,120]
[381289731,1756126953329,-1030.64,0.00044931,120]
[381289732,1756126953373,-2338.36,0.00044931,120]
[381289733,1756126953428,-15112.0,0.00044931,120]
[381289734,1756126953472,-1727.97,0.00044931,120]
[381289735,1756126953522,-480.0,0.00044931,120]
[381289736,1756126953573,-1347.42,0.00044931,120]
[381289737,1756126953616,-577.89,0.00044931,120]
[381289738,1756126953667,-480.0,0.00044931,120]
[381289739,1756126953720,-301.4,0.00044931,120]
[381289740,1756126953773,-1041.93,0.00044931,120]
[381289741,1756126953823,-1838.71,0.00044931,120]
[381289742,1756126953871,-5529.63,0.00044931,120]
[381289743,1756126953923,-480.0,0.00044931,120]
[381289744,1756126953979,-933.93,0.00044931,120]
[381289745,1756126954028,-487.78,0.00044931,120]
[381289746,1756126954084,-606.0,0.00044931,120]
[381289747,1756126954133,-646.24,0.00044931,120]
[381289748,1756126954186,-480.0,0.00044931,120]
[381289749,1756126954237,-1105.24,0.00044931,120]
[381289750,1756126954283,-2082.95,0.00044931,120]
[381289751,1756126954336,-492.52,0.00044931,120]
[381289752,1756126954389,-1012.97,0.00044931,120]
[381289753,1756126954431,-480.0,0.00044931,120]
[381289754,1756126954484,-759.39,0.00044931,120]
[381289755,1756126954531,-515.04,0.00044931,120]
[381289756,1756126954574,-1098.76,0.00044931,120]
[381289757,1756126954627,-641.0,0.00044931,120]
[381289758,1756126954676,-991.36,0.00044931,60]
[381289759,1756126954726,-1160.57,0.00044931,120]
[381289760,1756126954775,-4721.68,0.00044931,120]
[381289761,1756126954826,-5758.69,0.00044931,120]
[381289762,1756126954869,-2222.09,0.00044931,120]
[381289763,1756126954911,-2880.2,0.00044931,120]
[381289764,1756126954954,-480.0,0.00044931,120]
[381289765,1756126954996,-393.14589311,0.00044931,120]
[381289766,1756126955038,-722.84,0.00044931,120]
[381289767,1756126955080,-480.0,0.00044931,120]
[381289768,1756126955122,-519.53,0.00044931,120]
[381289769,1756126955166,-1837.05,0.00044931,120]
[381289770,1756126955208,-754.08,0.00044931,120]
[381289771,1756126955250,-537.85,0.00044931,120]
[381289772,1756126955292,-623.49,0.00044931,120]
[381289773,1756126955332,-480.0,0.00044931,120]
[381289774,1756126955373,-480.0,0.00044931,120]
[381289775,1756126955413,-922.87,0.00044931,120]
[381289776,1756126955452,-3286.24,0.00044931,120]
[381289777,1756126955491,-1742.33,0.00044931,120]
[381289778,1756126955529,-699.69,0.00044931,120]
[381289779,1756126955570,-480.0,0.00044931,120]
[381289780,1756126955611,-3554.1,0.00044931,120]
[381289781,1756126955653,-1900.11,0.00044931,120]
[381289782,1756126955694,-1531.43,0.00044931,120]
[381289783,1756126955737,-4805.74,0.00044931,120]
[381289784,1756126955778,-1180.0,0.00044931,120]
[381289785,1756126955818,-3615.26,0.00044931,120]
[381289786,1756126955857,-480.0,0.00044931,120]
[381289787,1756126955896,-1277.76,0.00044931,120]
[381289788,1756126955936,-480.0,0.00044931,120]
[381289789,1756126955975,-929.79,0.00044931,120]
[381289790,1756126956018,-4044.88,0.00044931,120]
[381289791,1756126956056,-25402.47,0.00044931,120]
[381289792,1756126956099,-955.0,0.00044931,120]
[381289793,1756126956141,-1204.96,0.00044931,120]
[381289794,1756126956185,-1339.86362163,0.00044949,70]
[381289795,1756126956229,-1000.0,0.00044999,120]
[381289796,1756126956272,-5032.70312968,0.00045,120]
[381289797,1756126956313,-1023.39153393,0.00045,120]
[381289798,1756126956358,-21667.39462777,0.00045,120]
[381289799,1756126956400,-10000.0,0.00045,120]
[381289800,1756126956440,-15178.2454,0.00045,120]
[381289801,1756126956479,-200.0,0.00045,120]
[381289802,1756126956519,-200.0,0.00045131,120]
[381289803,1756126956559,-480.0,0.00045205,120]
[381289804,1756126956597,-400.0,0.00045205,120]
[381289805,1756126956636,-480.0,0.00045205,120]
[381289806,1756126956676,-759.54,0.00045205,120]
[381289807,1756126956714,-740.62,0.00045205,120]
[381289808,1756126956752,-1189.95,0.00045205,120]
[381289809,1756126956792,-1185.16,0.00045205,120]
[381289810,1756126956832,-480.0,0.00045205,120]
[381289811,1756126956872,-482.36,0.00045205,120]
[381289812,1756126956912,-400.0,0.00045205,120]
[381289813,1756126956953,-715.89,0.00045205,120]
[381289814,1756126956997,-1684.16,0.00045205,120]
[381289815,1756126957038,-689.16,0.00045205,120]
[381289816,1756126957076,-480.0,0.00045205,120]
[381289817,1756126957115,-579.51,0.00045205,120]
[381289818,1756126957154,-468.74746126,0.00045205,120]
[381289819,1756126957192,-1931.57,0.00045205,120]
[381289820,1756126957230,-407.49058733,0.00045205,120]
[381289821,1756126957269,-2209.87,0.00045205,120]
[381289822,1756126957309,-929.85,0.00045205,120]
[381289823,1756126957348,-573.12,0.00045205,120]
[381289824,1756126957388,-920.67,0.00045205,120]
[381289825,1756126957429,-727.5,0.00045205,120]
[381289826,1756126957477,-480.0,0.00045205,120]
[381289827,1756126957524,-542.09,0.00045205,120]
[381289828,1756126957732,-960.62,0.00045205,120]
[381289829,1756126957794,-1161.07,0.00045205,120]
[381289830,1756126957840,-480.0,0.00045205,120]
[381289831,1756126957885,-223.29088295,0.00045205,120]
[381289832,1756126957926,-467.38363314,0.00045205,120]
[381289833,1756126957966,-1571.16,0.00045205,120]
[381289834,1756126958009,-956.49,0.00045205,120]
[381289835,1756126958051,-621.03,0.00045205,120]
[381289836,1756126958095,-669.29,0.00045205,120]
[381289837,1756126958137,-1188.59,0.00045205,120]
[381289838,1756126958181,-1297.99,0.00045205,120]
[381289839,1756126958223,-881.29,0.00045205,120]
[381289840,1756126958265,-505.82,0.00045205,120]
[381289841,1756126958306,-774.78,0.00045205,120]
[381289842,1756126958346,-1413.93,0.00045205,120]
[381289843,1756126958385,-743.01,0.00045205,120]
[381289844,1756126958424,-549.23,0.00045205,120]
[381289845,1756126958461,-341.56472923,0.00045205,120]
[381289846,1756126958498,-605.34,0.00045205,120]
[381289847,1756126958536,-1277.61,0.00045205,120]
[381289848,1756126958575,-1439.88,0.00045205,120]
[381289849,1756126958613,-878.22,0.00045205,120]
[381289850,1756126958650,-822.59,0.00045205,120]
[381289851,1756126958689,-278.73454295,0.00045205,120]
[381289852,1756126958726,-1412.42,0.00045205,120]
[381289853,1756126958765,-688.96,0.00045205,120]
[381289854,1756126958806,-550.64,0.00045205,120]
[381289855,1756126958847,-480.0,0.00045205,120]
[381289856,1756126958888,-1727.87,0.00045205,120]
[381289857,1756126958929,-480.0,0.00045205,120]
[381289858,1756126958969,-480.0,0.00045205,120]
[381289859,1756126959015,-527.55,0.00045205,120]
[381289860,1756126959059,-1790.75,0.00045205,120]
[381289861,1756126959100,-1248.92,0.00045205,120]
[381289862,1756126959143,-1221.05,0.00045205,120]
[381289863,1756126959185,-557.41,0.00045205,120]
[381289864,1756126959226,-755.37,0.00045205,120]
[381289865,1756126959264,-600.09748665,0.00045205,120]
[381289866,1756126959303,-836.57,0.00045205,120]
[381289867,1756126959342,-747.3,0.00045205,120]
[381289868,1756126959381,-3173.1,0.00045205,120]
[381289869,1756126959419,-620.02,0.00045205,120]
[381289870,1756126959457,-574.21059672,0.00045205,120]
[381289871,1756126959495,-569.35,0.00045205,120]
[381289872,1756126959533,-727.52,0.00045205,120]
[381289873,1756126959570,-1130.37,0.00045205,120]
[381289874,1756126959610,-480.0,0.00045205,120]
[381289875,1756126959651,-669.15,0.00045205,120]
[381289876,1756126959690,-711.39,0.00045205,120]
[381289877,1756126959730,-1403.13,0.00045205,120]
[381289878,1756126959769,-914.55,0.00045205,120]
[381289879,1756126959810,-480.0,0.00045205,120]
[381289880,1756126959850,-1073.69,0.00045205,120]
[381289881,1756126959888,-480.0,0.00045205,120]
[381289882,1756126959927,-732.1,0.00045205,120]
[381289883,1756126959966,-997.45,0.00045205,120]
[381289884,1756126960005,-480.0,0.00045205,120]
[381289885,1756126960046,-2182.29,0.00045205,120]
[381289886,1756126960086,-487.94,0.00045205,120]
[381289887,1756126960126,-896.66,0.00045205,120]
[381289888,1756126960167,-847.75,0.00045205,120]
[381289889,1756126960208,-654.73,0.00045205,120]
[381289890,1756126960248,-480.0,0.00045205,120]
[381289891,1756126960286,-5909.94,0.00045205,120]
[381289892,1756126960326,-490.9,0.00045205,120]
[381289893,1756126960366,-1676.25,0.00045205,120]
[381289894,1756126960405,-480.0,0.00045205,120]
[381289895,1756126960443,-480.0,0.00045205,120]
[381289896,1756126960482,-480.0,0.00045205,120]
[381289897,1756126960519,-480.0,0.00045205,120]
[381289898,1756126960558,-1637.12,0.00045205,120]
[381289899,1756126960596,-1896.62,0.00045205,120]
[381289900,1756126960636,-1185.69,0.00045205,120]
[381289901,1756126960675,-1152.59,0.00045205,120]
[381289902,1756126960715,-784.62,0.00045205,120]
[381289903,1756126960753,-509.48,0.00045205,120]
[381289904,1756126960792,-527.03,0.00045205,120]
[381289905,1756126960833,-480.0,0.00045205,120]
[381289906,1756126960873,-1022.88,0.00045205,120]
[381289907,1756126960914,-862.48,0.00045205,120]
[381289908,1756126960954,-771.76,0.00045205,120]
[381289909,1756126960994,-604.83,0.00045205,120]
[381289910,1756126961035,-1446.12,0.00045205,120]
[381289911,1756126961076,-815.47,0.00045205,120]
[381289912,1756126961117,-766.09,0.00045205,120]
[381289913,1756126961159,-1720.85,0.00045205,120]
[381289914,1756126961199,-1405.89,0.00045205,120]
[381289915,1756126961239,-2204.55,0.00045205,120]
[381289916,1756126961279,-631.79,0.00045205,120]
[381289917,1756126961318,-480.0,0.00045205,120]
[381289918,1756126961358,-1286.07,0.00045205,120]
[381289919,1756126961397,-214.80135943,0.00045205,120]
[381289920,1756126961437,-3309.78,0.00045205,120]
[381289921,1756126961476,-480.0,0.00045205,120]
[381289922,1756126961515,-782.03,0.00045205,120]
[381289923,1756126961556,-8939.69,0.00045205,120]
[381289924,1756126961597,-1045.84,0.00045205,120]
[381289925,1756126961636,-4901.35,0.00045205,120]
[381289926,1756126961675,-480.0,0.00045205,120]
[381289927,1756126961716,-3746.72,0.00045205,120]
[381289928,1756126961757,-1364.71,0.00045205,120]
[381289929,1756126961798,-2336.61,0.00045205,120]
[381289930,1756126961839,-480.0,0.00045205,120]
[381289931,1756126961879,-2298.35,0.00045205,120]
[381289932,1756126962094,-692.84,0.00045205,120]
[381289933,1756126962136,-480.0,0.00045205,120]
[381289934,1756126962179,-480.0,0.00045205,120]
[381289935,1756126962220,-748.2,0.00045205,120]
[381289936,1756126962275,-480.0,0.00045205,120]
[381289937,1756126962326,-1497.52,0.00045205,120]
[381289938,1756126962378,-627.58,0.00045205,120]
[381289939,1756126962422,-2186.25,0.00045205,120]
[381289940,1756126962462,-1589.2,0.00045205,120]
[381289941,1756126962504,-3124.04,0.00045205,120]
[381289942,1756126962552,-865.69,0.00045205,120]
[381289943,1756126962599,-480.0,0.00045205,120]
[381289944,1756126962648,-668.63,0.00045205,120]
[381289945,1756126962690,-1700.64,0.00045205,120]
[381289946,1756126962741,-1853.9,0.00045205,120]
[381289947,1756126962784,-1233.38,0.00045205,120]
[381289948,1756126962831,-480.0,0.00045205,120]
[381289949,1756126962876,-843.91,0.00045205,120]
[381289950,1756126962919,-820.84,0.00045205,120]
[381289951,1756126962969,-509.16,0.00045205,120]
[381289952,1756126963023,-3188.54,0.00045205,120]
[381289953,1756126963070,-687.95,0.00045205,120]
[381289954,1756126963123,-1293.99,0.00045205,120]
[381289955,1756126963176,-1335.79,0.00045205,120]
[381289956,1756126963228,-480.0,0.00045205,120]
[381289957,1756126963277,-1304.07,0.00045205,120]
[381289958,1756126963324,-480.0,0.00045205,120]
[381289959,1756126963377,-3079.65,0.00045205,120]
[381289960,1756126963423,-1864.32,0.00045205,120]
[381289961,1756126963472,-536.76,0.00045205,120]
[381289962,1756126963523,-228.24224857,0.00045205,120]
[381289963,1756126963575,-683.57,0.00045205,120]
[381289964,1756126963624,-1315.65,0.00045205,120]
[381289965,1756126963666,-2414.52,0.00045205,120]
[381289966,1756126963707,-1292.83,0.00045205,120]
[381289967,1756126963747,-559.23342034,0.00045205,120]
[381289968,1756126963789,-597.75,0.00045205,120]